fUSD/lending_fUSD_20251229
["ID","MTS","AMOUNT","RATE_DAILY","PERIOD"]
[400002635,1767010241722,-1000.0,0.00018082,2]
[400002636,1767010241731,-168.0,0.00018087,2]
[400002637,1767010241745,-168.0,0.0001809,2]
[400002638,1767010241754,-168.0,0.00018179,2]
[400002639,1767010241764,-2633.15871089,0.00018202,2]
[400002640,1767010241773,-1344.14,0.00018286,2]
[400002641,1767010241782,-294.0,0.00018327,2]
[400002642,1767010241792,-692.76036136,0.00018361,2]
[400002643,1767010241802,-185.76,0.00018548,2]
[400002644,1767010241811,-305.0,0.000186,2]
[400002645,1767010241821,-1000.0,0.0001876,2]
[400002646,1767010241830,-2279.61052244,0.00018781,2]
[400002647,1767010241839,-422.3234902,0.00018798,2]
[400002648,1767010241848,-849.0,0.000188,2]
[400002649,1767010241858,-976.0,0.000188,2]
[400002650,1767010241867,-153.35,0.000188,2]
[400002651,1767010241876,-153.35,0.000188,2]
[400002652,1767010241885,-153.35,0.000188,2]
[400002653,1767010241895,-153.35,0.000188,2]
[400002654,1767010241904,-250.0,0.00018803,2]
[400002655,1767010241913,-150.098,0.00018803,2]
[400002656,1767010241922,-150.114,0.00018803,2]
[400002657,1767010241931,-150.065,0.00018803,2]
[400002658,1767010241940,-150.0,0.00018803,2]
[400002659,1767010241949,-150.0,0.00018803,2]
[400002660,1767010241958,-162.38152614,0.000189,2]
[400002661,1767010241967,-1066.4303637,0.000189,2]
[400002662,1767010241977,-613.0,0.00018917,2]
[400002663,1767010241992,-912.0,0.00018917,2]
[400002664,1767010242001,-1199.0,0.00018917,2]
[400002665,1767010242010,-374.015,0.00018917,2]
[400002666,1767010242019,-15268.45044425,0.00019,2]
[400002667,1767010242028,-203.07573084,0.00019,2]
[400002668,1767010242037,-300.0,0.00019,2]
[400002669,1767010242047,-165.27,0.00019061,2]
[400002670,1767010242264,-194.0,0.00019068,2]
[400002671,1767010242275,-201.36386947,0.00019078,2]
[400002672,1767010242283,-200.77537576,0.00019082,2]
[400002673,1767010242292,-151.0,0.00019178,2]
[400002674,1767010242301,-2031.481272,0.00019178,2]
[400002675,1767010242310,-2031.481272,0.00019178,2]
[400002676,1767010242319,-2031.481272,0.00019178,2]
[400002677,1767010242328,-2031.481272,0.00019178,2]
[400002678,1767010242338,-2031.481272,0.00019178,2]
[400002679,1767010242348,-2031.481272,0.00019178,2]
[400002680,1767010242357,-2031.481272,0.00019178,2]
[400002681,1767010242366,-2031.481272,0.00019178,2]
[400002682,1767010242376,-2031.481272,0.00019178,2]
[400002683,1767010242385,-2031.481272,0.00019178,2]
[400002684,1767010242394,-2031.481272,0.00019178,2]
[400002685,1767010242404,-2031.481272,0.00019178,2]
[400002686,1767010242413,-185.76,0.00019354,2]
[400002687,1767010242423,-1000.0,0.00019438,2]
[400002688,1767010242432,-1000.0,0.00019462,2]
[400002689,1767010242442,-150.0,0.0001965,2]
[400002690,1767010242452,-1060.0,0.00019756,2]
[400002691,1767010242461,-1008.9,0.00019876,2]
[400002692,1767010242470,-1344.14,0.00019949,2]
[400002693,1767010242480,-4984.09272893,0.0002,4]
[400002694,1767010242493,-342.5153,0.0002,2]
[400002695,1767010242502,-500.0,0.0002,2]
[400002696,1767010242511,-200.0,0.0002,2]
[400002697,1767010242520,-500.0,0.00020001,2]
[400002698,1767010242530,-500.0,0.00020002,2]
[400002699,1767010242539,-188.870181,0.00020003,2]
[400002700,1767010242548,-1000.0,0.00020116,2]
[400002701,1767010242558,-185.76,0.0002016,2]
[400002702,1767010242570,-422.59,0.00020187,2]
[400002703,1767010242579,-250.0,0.00020198,2]
[400002704,1767010242589,-246.50965399,0.000204,2]
[400002705,1767010242598,-21463.55,0.00020548,2]
[400002706,1767010242610,-949.25,0.00020644,2]
[400002707,1767010242619,-2000.0,0.000207,2]
[400002708,1767010242628,-350.0,0.00020746,2]
[400002709,1767010242637,-1000.0,0.00020795,2]
[400002710,1767010242647,-1291.87295419,0.000209,30]
[400002711,1767010242656,-200.0,0.000209,2]
[400002712,1767010242665,-152.0,0.000209,2]
[400002713,1767010242675,-151.0,0.000209,2]
[400002714,1767010242684,-1257.0,0.000209,2]
[400002715,1767010242693,-152.0,0.000209,2]
[400002716,1767010242702,-151.0,0.000209,2]
[400002717,1767010242710,-1257.0,0.000209,2]
[400002718,1767010242718,-152.0,0.000209,2]
[400002719,1767010242727,-1257.0,0.000209,2]
[400002720,1767010242736,-151.0,0.000209,2]
[400002721,1767010242745,-152.0,0.000209,2]
[400002722,1767010242753,-1257.0,0.000209,2]
[400002723,1767010242762,-151.0,0.000209,2]
[400002724,1767010242771,-152.0,0.000209,2]
[400002725,1767010242780,-1257.0,0.000209,2]
[400002726,1767010242788,-151.0,0.000209,2]
[400002727,1767010242797,-152.0,0.000209,2]
[400002728,1767010242806,-1257.0,0.000209,2]
[400002729,1767010242815,-151.0,0.000209,2]
[400002730,1767010242824,-152.0,0.000209,2]
[400002731,1767010242833,-1257.0,0.000209,2]
[400002732,1767010242842,-151.0,0.000209,2]
[400002733,1767010242851,-152.0,0.000209,2]
[400002735,1767010242860,-1257.0,0.000209,2]
[400002737,1767010242870,-151.0,0.000209,2]
[400002738,1767010242879,-152.0,0.000209,2]
[400002739,1767010242888,-1257.0,0.000209,2]
[400002740,1767010242897,-151.0,0.000209,2]
[400002741,1767010242906,-152.0,0.000209,2]
[400002743,1767010242915,-1257.0,0.000209,2]
[400002744,1767010242924,-151.0,0.000209,2]
[400002745,1767010242933,-152.0,0.000209,2]
[400002746,1767010242942,-151.0,0.000209,2]
[400002747,1767010242951,-152.0,0.000209,2]
[400002748,1767010242960,-1257.0,0.000209,2]
[400002749,1767010242969,-152.0,0.000209,2]
[400002750,1767010242978,-1257.0,0.000209,2]
[400002751,1767010242987,-152.0,0.000209,2]
[400002752,1767010242996,-151.0,0.000209,2]
[400002753,1767010243005,-1257.0,0.000209,2]
[400002754,1767010243014,-152.0,0.000209,2]
[400002755,1767010243023,-151.0,0.000209,2]
[400002756,1767010243031,-1257.0,0.000209,2]
[400002757,1767010243040,-152.0,0.000209,2]
[400002758,1767010243049,-1257.0,0.000209,2]
[400002759,1767010243059,-151.0,0.000209,2]
[400002760,1767010243067,-1257.0,0.000209,2]
[400002761,1767010243076,-152.0,0.000209,2]
[400002762,1767010243086,-151.0,0.000209,2]
[400002763,1767010243094,-152.0,0.000209,2]
[400002764,1767010243104,-1257.0,0.000209,2]
[400002765,1767010243113,-152.0,0.000209,2]
[400002766,1767010243122,-1257.0,0.000209,2]
[400002767,1767010243131,-151.0,0.000209,2]
[400002768,1767010243140,-152.0,0.000209,2]
[400002769,1767010243149,-1257.0,0.000209,2]
[400002770,1767010243158,-151.0,0.000209,2]
[400002771,1767010243167,-152.0,0.000209,2]
[400002772,1767010243177,-1257.0,0.000209,2]
[400002773,1767010243187,-151.0,0.000209,2]
[400002774,1767010243195,-1257.0,0.000209,2]
[400002775,1767010243204,-152.0,0.000209,2]
[400002776,1767010243214,-151.0,0.000209,2]
[400002777,1767010243223,-1257.0,0.000209,2]
[400002778,1767010243232,-152.0,0.000209,2]
[400002779,1767010243244,-151.0,0.000209,2]
[400002780,1767010243253,-152.0,0.000209,2]
[400002781,1767010243263,-1257.0,0.000209,2]
[400002782,1767010243272,-151.0,0.000209,2]
[400002783,1767010243281,-1257.0,0.000209,2]
[400002784,1767010243290,-151.0,0.000209,2]
[400002785,1767010243299,-152.0,0.000209,2]
[400002786,1767010243309,-1257.0,0.000209,2]
[400002787,1767010243318,-152.0,0.000209,2]
[400002788,1767010243327,-151.0,0.000209,2]
[400002789,1767010243337,-1257.0,0.000209,2]
[400002790,1767010243345,-151.0,0.000209,2]
[400002791,1767010243355,-152.0,0.000209,2]
[400002792,1767010243364,-1257.0,0.000209,2]
[400002793,1767010243373,-151.0,0.000209,2]
[400002794,1767010243383,-152.0,0.000209,2]
[400002795,1767010243392,-1102.52601387,0.000209,2]
[400002796,1767010243402,-151.0,0.000209,2]
[400002797,1767010243411,-206.21647338,0.000209,2]
[400002798,1767010243420,-151.0,0.000209,2]
[400002799,1767010243430,-1256.0,0.000209,2]
[400002800,1767010243440,-151.0,0.000209,2]
[400002801,1767010243450,-151.0,0.000209,2]
[400002802,1767010243459,-151.0,0.000209,2]
[400002803,1767010243469,-151.0,0.000209,2]
[400002804,1767010243478,-151.0,0.000209,2]
[400002805,1767010243488,-151.0,0.000209,2]
[400002806,1767010243497,-151.0,0.000209,2]
[400002807,1767010243506,-151.0,0.000209,2]
[400002808,1767010243519,-151.0,0.000209,2]
[400002809,1767010243529,-191.19259119,0.000209,2]
[400002810,1767010243539,-159.79407271,0.000209,2]
[400002811,1767010243548,-151.0,0.000209,2]
[400002812,1767010243558,-151.0,0.000209,2]
[400002813,1767010243572,-159.64913359,0.000209,2]
[400002814,1767010243581,-185.76,0.00020967,2]
[400002815,1767010243590,-2188.98332652,0.00021,2]
[400002816,1767010243601,-686.81305732,0.00021,2]
[400002818,1767010243611,-196.42385615,0.00021,2]
[400002819,1767010243621,-350.0,0.00021,2]
[400002822,1767010243630,-2633.15871089,0.00021064,2]
[400002825,1767010243641,-5627.21,0.00021068,2]
[400002828,1767010243650,-200.0,0.00021109,2]
[400002831,1767010243659,-1033.46409579,0.00021133,2]
[400002834,1767010243671,-1000.0,0.00021231,2]
[400002837,1767010243694,-450.0,0.00021294,2]
[400002840,1767010243713,-333.49,0.00021496,2]
[400002843,1767010243722,-221.5500965,0.000215,2]
[400002846,1767010243732,-2279.61052244,0.00021546,2]
[400002848,1767010243744,-176.45,0.00021617,2]
[400002849,1767010243753,-185.76,0.00021773,2]
[400002850,1767010243764,-150.0,0.00021803,2]
[400002851,1767010243775,-150.0,0.00021803,2]
[400002852,1767010243785,-151.06982274,0.00021842,2]
[400002853,1767010243795,-613.0,0.00021917,2]
[400002854,1767010243805,-912.0,0.00021917,2]
[400002855,1767010243815,-1199.0,0.00021917,2]
[400002856,1767010243825,-3004.87,0.00021918,2]
[400002857,1767010243835,-158.08,0.00021918,30]
[400002858,1767010243845,-5000.0,0.00021918,2]
[400002859,1767010243854,-153.65384883,0.00021918,2]
[400002860,1767010243864,-500.0,0.00021918,2]
[400002861,1767010243874,-500.0,0.00021918,2]
[400002862,1767010243884,-500.0,0.00021918,2]
[400002863,1767010243893,-500.0,0.00021918,2]
[400002864,1767010243903,-500.0,0.00021918,2]
[400002865,1767010243913,-500.0,0.00021918,2]
[400002866,1767010243922,-500.0,0.00021918,2]
[400002867,1767010243931,-500.0,0.00021918,2]
[400002868,1767010243941,-500.0,0.00021918,2]
[400002869,1767010243950,-500.0,0.00021918,2]
[400002870,1767010243959,-500.0,0.00021918,2]
[400002871,1767010243968,-500.0,0.00021918,2]
[400002872,1767010243977,-500.0,0.00021918,2]
[400002873,1767010243988,-500.0,0.00021918,2]
[400002874,1767010243998,-535.01476773,0.00021918,2]
[400002875,1767010244007,-500.0,0.00021918,2]
[400002876,1767010244016,-500.0,0.00021918,2]
[400002877,1767010244025,-500.0,0.00021918,2]
[400002878,1767010244035,-2298.92,0.0002192,2]
[400002879,1767010244045,-2298.92,0.0002192,2]
[400002880,1767010244055,-2298.92,0.0002192,2]
[400002881,1767010244065,-2298.92,0.0002192,2]
[400002882,1767010244075,-2298.92,0.0002192,2]
[400002883,1767010244085,-152.21,0.00022,7]
[400002884,1767010244095,-409.06,0.00022,7]
[400002885,1767010244104,-1008.9,0.00022184,2]
[400002886,1767010244113,-222.31,0.00023318,2]
[400002887,1767010244122,-246.50965399,0.000239,2]
[400002888,1767010244131,-2633.15871089,0.00023926,2]
[400002889,1767010244140,-16650.70081165,0.00024,2]
[400002890,1767010244149,-1018.46525943,0.00024,2]
[400002891,1767010244158,-3600.0,0.00024,2]
[400002892,1767010244167,-320.3860841,0.00024,2]
[400002893,1767010244177,-3540.59966986,0.00024,2]
[400002894,1767010244186,-2031.481272,0.00024,2]
[400002895,1767010244195,-2031.481272,0.00024,2]
[400002896,1767010244203,-2031.481272,0.00024,2]
[400002897,1767010244213,-2031.481272,0.00024,2]
[400002898,1767010244222,-151.0,0.00024,2]
[400002899,1767010244231,-2279.61052244,0.00024311,2]
[400002900,1767010244245,-2000.0,0.000244,2]
[400002901,1767010244254,-152.11205024,0.00024463,2]
[400002902,1767010244263,-1008.9,0.00024491,2]
[400002903,1767010244274,-1000.0,0.00024658,2]
[400002904,1767010244283,-151.0,0.00024658,2]
[400002905,1767010244292,-422.845317,0.00024658,7]
[400002906,1767010244302,-422.845317,0.00024658,7]
[400002907,1767010244312,-422.845317,0.00024658,7]
[400002908,1767010244321,-422.845317,0.00024658,7]
[400002909,1767010244331,-352.483327,0.00024658,7]
[400002910,1767010244340,-352.483327,0.00024658,7]
[400002911,1767010244349,-352.483327,0.00024658,7]
[400002912,1767010244359,-352.483327,0.00024658,7]
[400002913,1767010244369,-255414.863462,0.000248,3]
[400002914,1767010244380,-2031.481272,0.000248,7]
[400002915,1767010244391,-2031.481272,0.000248,7]
[400002916,1767010244401,-2031.481272,0.000248,7]
[400002917,1767010244412,-2031.481271,0.000248,7]
[400002918,1767010244422,-151.0,0.000248,7]
[400002919,1767010244432,-150.0,0.00024803,2]
[400002920,1767010244442,-150.0,0.00024803,2]
[400002921,1767010244452,-151.0,0.000249,2]
[400002922,1767010244461,-612.0,0.00024917,2]
[400002923,1767010244471,-912.0,0.00024917,2]
[400002924,1767010244481,-1199.0,0.00024917,2]
[400002925,1767010244495,-150.0,0.00025,2]
[400002926,1767010244505,-1033.46409579,0.00025367,2]
[400002927,1767010244514,-500.0,0.00025562,2]
[400002928,1767010244524,-333.49,0.00025816,2]
[400002929,1767010244533,-178.66,0.00025836,2]
[400002930,1767010244543,-176.45,0.00025877,2]
[400002931,1767010244553,-422.59,0.00026676,2]
[400002932,1767010244563,-2633.15871089,0.00026787,2]
[400002933,1767010244577,-1008.9,0.00026798,2]
[400002934,1767010244586,-2279.61052244,0.00027076,2]
[400002935,1767010244596,-178.66,0.00027151,2]
[400002936,1767010244607,-178.66,0.00027151,2]
[400002937,1767010244616,-178.66,0.00027151,2]
[400002938,1767010244625,-178.66,0.00027151,2]
[400002939,1767010244634,-178.66,0.00027151,2]
[400002940,1767010244644,-178.66,0.00027151,2]
[400002941,1767010244655,-178.66,0.00027151,2]
[400002942,1767010244665,-178.66,0.00027151,2]
[400002943,1767010244675,-178.66,0.00027151,2]
[400002944,1767010244684,-178.66,0.00027151,2]
[400002945,1767010244694,-179.83,0.00027151,2]
[400002947,1767010244704,-409.06,0.000273,7]
[400002949,1767010244714,-150.0,0.00027369,2]
[400002951,1767010244723,-300.0,0.00027397,2]
[400002953,1767010244733,-500.0,0.00027397,20]
[400002955,1767010244745,-153.0,0.00027397,2]
[400002957,1767010244756,-153.0,0.00027397,2]
[400002959,1767010244765,-153.0,0.00027397,2]
[400002961,1767010244773,-153.0,0.00027397,2]
[400002963,1767010244783,-153.0,0.00027397,2]
[400002965,1767010244791,-153.0,0.00027397,2]
[400002967,1767010244801,-153.0,0.00027397,2]
[400002969,1767010244810,-153.0,0.00027397,2]
[400002971,1767010244820,-153.0,0.00027397,2]
[400002973,1767010244829,-153.0,0.00027397,2]
[400002975,1767010244839,-153.0,0.00027397,2]
[400002977,1767010244849,-153.0,0.00027397,2]
[400002979,1767010244859,-164.0,0.00027397,2]
[400002981,1767010244868,-246.50965399,0.000274,2]
[400002982,1767010244877,-5128.41,0.00027671,2]
[400002983,1767010244887,-152.21,0.000277,7]
[400002984,1767010244897,-150.0,0.00027803,2]
[400002985,1767010244906,-222.30051953,0.00027895,7]
[400002986,1767010244916,-557.821,0.00027917,2]
[400002987,1767010244925,-1199.0,0.00027917,2]
[400002988,1767010244937,-3966.0,0.00028,2]
[400002989,1767010244946,-2000.0,0.000281,2]
[400002990,1767010244955,-659.62,0.00028384,2]
[400002991,1767010244964,-659.62,0.00028384,2]
[400002992,1767010244975,-158.08,0.00028767,30]
[400002993,1767010244984,-384.16,0.000288,2]
[400002994,1767010244996,-1008.9,0.00029106,2]
[400002995,1767010245006,-1033.46409579,0.000296,2]
[400002996,1767010245016,-481.65,0.00029616,2]
[400002997,1767010245025,-481.65,0.00029616,2]
[400002998,1767010245035,-481.65,0.00029616,2]
[400002999,1767010245044,-481.65,0.00029616,2]
[400003000,1767010245054,-481.65,0.00029616,2]
[400003001,1767010245064,-2633.15871089,0.00029649,2]
[400003002,1767010245074,-293.90223744,0.00029677,2]
[400003003,1767010245083,-2279.61052244,0.0002984,2]
[400003004,1767010245093,-481.65,0.0003,2]
[400003005,1767010245103,-481.65,0.0003,2]
[400003006,1767010245112,-481.65,0.0003,2]
[400003007,1767010245122,-481.65,0.0003,2]
[400003008,1767010245132,-481.65,0.0003,2]
[400003009,1767010245142,-481.65,0.0003,2]
[400003010,1767010245152,-481.65,0.0003,2]
[400003011,1767010245161,-481.65,0.0003,2]
[400003012,1767010245171,-481.65,0.0003,2]
[400003013,1767010245180,-481.65,0.0003,2]
[400003014,1767010245190,-481.65,0.0003,2]
[400003015,1767010245199,-481.65,0.0003,2]
[400003016,1767010245209,-481.65,0.0003,2]
[400003017,1767010245219,-481.65,0.0003,2]
[400003018,1767010245229,-481.65,0.0003,2]
[400003019,1767010245239,-481.65,0.0003,2]
[400003020,1767010245248,-481.65,0.0003,2]
[400003021,1767010245257,-481.65,0.0003,2]
[400003022,1767010245268,-481.65,0.0003,2]
[400003023,1767010245277,-481.65,0.0003,2]
[400003024,1767010245286,-481.65,0.0003,2]
[400003025,1767010245296,-481.65,0.0003,2]
[400003026,1767010245305,-481.65,0.0003,2]
[400003027,1767010245314,-481.65,0.0003,2]
[400003028,1767010245324,-481.65,0.0003,2]
[400003029,1767010245333,-481.65,0.0003,2]
[400003030,1767010245343,-481.65,0.0003,2]
[400003031,1767010245352,-5662.14242901,0.0003,30]
[400003032,1767010245362,-10007.30081,0.0003,2]
[400003033,1767010245371,-10007.30082,0.0003,2]
[400003034,1767010245381,-10007.30082,0.0003,2]
[400003035,1767010245390,-10007.30082,0.0003,2]
[400003036,1767010245399,-10007.30082,0.0003,2]
[400003037,1767010245408,-10007.30081,0.0003,2]
[400003038,1767010245417,-10007.30082,0.0003,2]
[400003039,1767010245428,-10007.30081,0.0003,2]
[400003041,1767010245438,-10007.30081,0.0003,2]
[400003043,1767010245448,-10007.30082,0.0003,2]
[400003044,1767010245458,-481.65,0.00030055,2]
[400003045,1767010245467,-500.0,0.00030087,7]
[400003046,1767010245477,-3500.0,0.0003013,2]
[400003047,1767010245486,-200.0,0.00030136,2]
[400003049,1767010245498,-223.59942424,0.00030137,120]
[400003050,1767010245508,-475.2,0.00030137,6]
[400003051,1767010245517,-434.6,0.00030137,7]
[400003052,1767010245527,-365.2,0.00030137,6]
[400003054,1767010245537,-380.2,0.00030137,7]
[400003056,1767010245546,-302.0,0.00030137,2]
[400003058,1767010245556,-398.2,0.00030137,5]
[400003060,1767010245569,-313.4,0.00030137,7]
[400003062,1767010245578,-495.8,0.00030137,5]
[400003063,1767010245587,-411.2,0.00030137,6]
[400003065,1767010245598,-437.8,0.00030137,2]
[400003066,1767010245607,-420.2,0.00030137,4]
[400003067,1767010245616,-414.8,0.00030137,5]
[400003068,1767010245626,-325.4,0.00030137,4]
[400003069,1767010245636,-369.4,0.00030137,4]
[400003070,1767010245646,-410.8,0.00030137,6]
[400003071,1767010245656,-432.6,0.00030137,7]
[400003072,1767010245665,-467.4,0.00030137,2]
[400003073,1767010245674,-373.0,0.00030137,3]
[400003074,1767010245683,-359.6,0.00030137,4]
[400003075,1767010245692,-348.2,0.00030137,4]
[400003076,1767010245702,-376.4,0.00030137,5]
[400003077,1767010245711,-481.16,0.00030274,2]
[400003078,1767010245720,-222.33,0.00030303,2]
[400003079,1767010245730,-200.0,0.00030437,2]
[400003080,1767010245741,-307.25,0.00030438,2]
[400003081,1767010245751,-150.0,0.00030438,2]
[400003082,1767010245761,-170.78,0.00030438,2]
[400003083,1767010245770,-250.79,0.00030438,2]
[400003084,1767010245780,-150.0,0.00030438,2]
[400003085,1767010245789,-554.77,0.0003044,2]
[400003086,1767010245798,-554.77,0.0003044,2]
[400003087,1767010245808,-554.77,0.0003044,2]
[400003088,1767010245817,-554.77,0.0003044,2]
[400003089,1767010245826,-554.77,0.0003044,2]
[400003090,1767010245835,-554.77,0.0003044,2]
[400003091,1767010245845,-554.77,0.0003044,2]
[400003092,1767010245854,-554.77,0.0003044,2]
[400003093,1767010245863,-554.77,0.0003044,2]
[400003094,1767010245873,-554.77,0.0003044,2]
[400003096,1767010245882,-554.77,0.0003044,2]
[400003098,1767010245891,-554.77,0.0003044,2]
[400003101,1767010245901,-554.77,0.0003044,2]
[400003103,1767010245910,-500.0,0.00030452,7]
[400003105,1767010245920,-176.45,0.00030456,2]
[400003107,1767010245930,-222.33,0.00030469,2]
[400003109,1767010245939,-150.0,0.00030548,2]
[400003111,1767010245948,-150.0,0.00030548,2]
[400003113,1767010245957,-300.34,0.00030548,2]
[400003114,1767010245966,-150.0,0.00030548,2]
[400003117,1767010245975,-150.0,0.00030548,2]
[400003119,1767010245984,-172.44,0.00030548,2]
[400003120,1767010245996,-29999.99,0.0003062,2]
[400003122,1767010246004,-18143.64,0.0003062,2]
[400003124,1767010246013,-151.000007,0.00030621,2]
[400003126,1767010246022,-422.845317,0.00030621,31]
[400003128,1767010246032,-422.845317,0.00030621,31]
[400003130,1767010246041,-422.845317,0.00030621,31]
[400003132,1767010246050,-422.845325,0.00030621,31]
[400003134,1767010246059,-352.483327,0.00030621,31]
[400003136,1767010246068,-352.483327,0.00030621,31]
[400003137,1767010246077,-352.483327,0.00030621,31]
[400003138,1767010246086,-352.483324,0.00030621,31]
[400003139,1767010246095,-152.21,0.000307,7]
[400003140,1767010246105,-200.0,0.00030742,2]
[400003141,1767010246114,-553.17,0.00030764,2]
[400003142,1767010246123,-554.37,0.00030764,2]
[400003143,1767010246133,-481.65,0.00030767,2]
[400003144,1767010246142,-481.65,0.00030767,2]
[400003145,1767010246151,-554.77,0.00030769,2]
[400003146,1767010246160,-554.77,0.00030769,2]
[400003147,1767010246170,-554.77,0.00030769,2]
[400003148,1767010246179,-554.77,0.00030769,2]
[400003149,1767010246188,-554.77,0.00030769,2]
[400003150,1767010246197,-176.45,0.00030774,2]
[400003151,1767010246206,-1066.4303637,0.000308,2]
[400003154,1767010246373,-150.0,0.00030803,2]
[400003155,1767010246383,-246.50965399,0.000309,2]
[400003156,1767010246394,-481.65,0.00030959,2]
[400003157,1767010246403,-554.77,0.00030992,2]
[400003158,1767010246412,-554.77,0.00030992,2]
[400003159,1767010246421,-554.77,0.00030992,2]
[400003160,1767010246432,-564.07,0.00030992,2]
[400003161,1767010246441,-700.0,0.00031,3]
[400003162,1767010246450,-409.06,0.00031,7]
[400003163,1767010246460,-554.77,0.00031093,2]
[400003164,1767010246469,-554.77,0.00031093,2]
[400003165,1767010246479,-554.77,0.00031093,2]
[400003166,1767010246491,-554.77,0.00031144,2]
[400003167,1767010246500,-1008.9,0.00031413,2]
[400003168,1767010246510,-554.77,0.00031591,2]
[400003169,1767010246521,-554.77,0.00031591,2]
[400003170,1767010246530,-554.77,0.00031591,2]
[400003171,1767010246540,-554.77,0.00031591,2]
[400003172,1767010246550,-554.77,0.00031591,2]
[400003173,1767010246562,-554.77,0.00031591,2]
[400003174,1767010246574,-554.77,0.00031591,2]
[400003175,1767010246584,-554.77,0.00031591,2]
[400003176,1767010246594,-554.77,0.00031591,2]
[400003177,1767010246605,-554.77,0.00031591,2]
[400003178,1767010246614,-554.77,0.00031591,2]
[400003179,1767010246623,-554.77,0.00031591,2]
[400003180,1767010246632,-554.77,0.00031591,2]
[400003181,1767010246642,-2000.0,0.000318,2]
[400003182,1767010246653,-481.45,0.00031863,2]
[400003183,1767010246662,-554.77,0.00031919,2]
[400003184,1767010246671,-554.77,0.00031919,2]
[400003185,1767010246681,-554.77,0.00031919,2]
[400003186,1767010246690,-554.77,0.00031919,2]
[400003187,1767010246698,-554.77,0.00031919,2]
[400003188,1767010246707,-554.77,0.00031919,2]
[400003189,1767010246716,-554.77,0.00031919,2]
[400003190,1767010246725,-554.77,0.00031919,2]
[400003191,1767010246734,-554.77,0.00031919,2]
[400003192,1767010246745,-554.77,0.00031919,2]
[400003193,1767010246755,-554.77,0.00031919,2]
[400003194,1767010246764,-554.77,0.00031919,2]
[400003195,1767010246773,-554.77,0.00031919,2]
[400003196,1767010246782,-554.77,0.00031919,2]
[400003197,1767010246791,-1109.54,0.00031919,2]
[400003198,1767010246800,-554.77,0.00031919,2]
[400003199,1767010246809,-554.77,0.00031919,2]
[400003200,1767010246818,-554.77,0.00031919,2]
[400003201,1767010246826,-1109.14,0.00031919,2]
[400003202,1767010246835,-347.14482896,0.0003216,2]
[400003203,1767010246845,-481.65,0.00032219,2]
[400003204,1767010246854,-481.65,0.00032219,2]
[400003205,1767010246863,-481.65,0.00032219,2]
[400003206,1767010246872,-481.65,0.00032219,2]
[400003207,1767010246881,-481.65,0.00032219,2]